bitfinex/quotes_BTCUSD_20250829
["timestamp","ask_amount","ask_price","bid_price","bid_amount"]
[1756452715296,0.18101349,110490.0,110480.0,0.18610824]
[1756452715297,0.34597349,110490.0,110480.0,0.18610824]
[1756452715520,0.34859177,110490.0,110480.0,0.18610824]
[1756452715751,0.16543828,110490.0,110480.0,0.18310824]
[1756452715979,0.68859013,110490.0,110480.0,0.18310824]
[1756452716411,0.68645013,110490.0,110480.0,0.18410824]
[1756452717472,0.50543828,110490.0,110480.0,0.18410824]
[1756452719007,0.68645013,110490.0,110480.0,0.18410824]
[1756452719346,0.34645013,110490.0,110480.0,0.18410824]
[1756452720140,0.00047828,110490.0,110480.0,0.18410824]
[1756452720345,0.16535828,110490.0,110480.0,0.27240456]
[1756452720540,0.00047828,110490.0,110480.0,0.43728456]
[1756452724544,0.00047828,110490.0,110480.0,0.43720456]
[1756452725282,0.00047828,110490.0,110480.0,0.34334338]
[1756452725504,0.00047828,110490.0,110480.0,1.50945201]
[1756452727837,0.00047828,110490.0,110480.0,1.29465201]
[1756452728048,0.00047828,110490.0,110480.0,0.50810338]
[1756452728246,0.00047828,110490.0,110480.0,1.50941201]
[1756452729197,0.00047828,110490.0,110480.0,0.50810338]
[1756452731179,0.00047828,110490.0,110480.0,0.34334338]
[1756452731348,0.00047828,110490.0,110480.0,0.50806338]
[1756452731728,0.00047828,110490.0,110480.0,1.50937201]
[1756452732042,0.00047828,110490.0,110480.0,0.51006338]
[1756452733085,0.00047828,110490.0,110480.0,0.34934338]
[1756452733277,0.00047828,110490.0,110480.0,0.51406338]
[1756452736702,0.00047828,110490.0,110480.0,1.51537201]
[1756452736867,0.00047828,110490.0,110480.0,0.51406338]
[1756452737415,0.00047828,110490.0,110480.0,1.53789265]
[1756452737826,0.00047828,110490.0,110480.0,0.51402338]
[1756452738002,0.00047828,110490.0,110480.0,1.53785265]
[1756452738553,0.00047828,110490.0,110480.0,0.27840456]
[1756452738754,0.00256828,110490.0,110480.0,0.43800456]
[1756452739198,0.18942844,110490.0,110480.0,0.007]
[1756452739405,0.19489312,110490.0,110480.0,0.007]
[1756452740533,0.19489312,110490.0,110470.0,0.18104316]
[1756452740664,0.01086127,110490.0,110480.0,0.27132456]
[1756452740873,0.01086127,110490.0,110480.0,0.27440456]
[1756452741100,0.00878297,110490.0,110480.0,0.44266456]
[1756452741300,0.00047828,110490.0,110480.0,0.44266456]
[1756452741524,0.00047828,110490.0,110480.0,0.44166456]
[1756452741731,0.00047828,110490.0,110480.0,0.46887256]
[1756452743392,0.00256828,110490.0,110480.0,0.30379256]
[1756452743603,0.00047828,110490.0,110480.0,0.46899256]
[1756452743830,0.00047828,110490.0,110480.0,0.46999256]
[1756452744030,0.00256828,110490.0,110480.0,0.46999256]
[1756452744239,0.00047828,110490.0,110480.0,0.46999256]
[1756452744467,0.00880213,110490.0,110480.0,0.46999256]
[1756452747136,0.00880213,110490.0,110480.0,0.54093138]
[1756452748523,0.00880213,110490.0,110480.0,0.30479256]
[1756452748855,0.00880213,110490.0,110480.0,0.54157138]
[1756452749036,0.00880213,110490.0,110480.0,0.37573138]
[1756452749344,0.00880213,110490.0,110480.0,0.32573138]
[1756452749487,0.00880213,110490.0,110480.0,0.54153138]
[1756452749686,0.00880213,110490.0,110480.0,0.54149138]
[1756452750322,0.00880213,110490.0,110480.0,0.49141138]
[1756452750882,0.00880213,110490.0,110480.0,0.54141138]
[1756452751427,0.18096382,110520.0,110510.0,0.18097909]
[1756452751634,0.18213724,110520.0,110510.0,0.26647541]
[1756452752868,0.18413724,110520.0,110510.0,0.26647541]
[1756452753786,0.18513724,110520.0,110510.0,0.26647541]
[1756452754242,0.18413724,110520.0,110510.0,0.26647541]
[1756452754566,0.18413724,110520.0,110510.0,0.26747541]
[1756452755387,0.00317342,110520.0,110510.0,0.26747541]
[1756452755657,0.18413614,110520.0,110510.0,0.26747541]
[1756452755775,0.18213614,110520.0,110510.0,0.26747541]
[1756452756161,0.18213614,110520.0,110510.0,0.26847541]
[1756452757213,0.18213614,110520.0,110510.0,0.27373541]
[1756452757448,0.18163614,110520.0,110510.0,0.27373541]
[1756452757954,0.18163614,110520.0,110510.0,0.26847541]
[1756452758302,0.00067342,110520.0,110510.0,0.26847541]
[1756452758910,0.00067342,110520.0,110510.0,0.27373541]
[1756452759120,0.00014342,110520.0,110510.0,0.34436623]
[1756452759605,0.00014342,110520.0,110510.0,0.37156923]
[1756452761023,0.00037342,110520.0,110510.0,0.29567841]
[1756452761221,0.00037342,110520.0,110510.0,0.43339541]
[1756452761465,0.00037342,110520.0,110510.0,0.43657541]
[1756452761801,0.00037342,110520.0,110510.0,0.43865541]
[1756452761925,0.00014342,110520.0,110510.0,0.43865541]
[1756452762571,0.00014342,110520.0,110510.0,0.50928623]
[1756452762872,0.00014342,110520.0,110510.0,0.50952623]
[1756452764470,0.00014342,110520.0,110510.0,1.94431979]
[1756452764671,0.00014342,110520.0,110510.0,0.92046505]
[1756452766160,0.00014342,110520.0,110510.0,0.91846505]
[1756452766380,0.00014342,110520.0,110510.0,0.92346505]
[1756452766595,0.00014342,110520.0,110510.0,0.92746505]
[1756452767651,0.00014342,110520.0,110510.0,0.28073541]
[1756452767869,0.18133614,110520.0,110510.0,0.09729632]
[1756452768083,0.21800114,110520.0,110510.0,0.009]
[1756452768306,0.22632114,110520.0,110510.0,0.009]
[1756452768504,0.22632114,110520.0,110510.0,0.00966646]
[1756452768757,0.18979614,110520.0,110510.0,0.00966646]
[1756452769291,0.18979614,110520.0,110510.0,0.00566646]
[1756452769763,0.18979614,110520.0,110510.0,0.00066646]
[1756452770250,0.18147614,110520.0,110510.0,0.00466646]
[1756452770426,0.18147614,110520.0,110510.0,0.00366646]
[1756452770833,0.00051342,110520.0,110510.0,0.18164555]
[1756452771043,0.00320096,110520.0,110510.0,0.18164555]
[1756452771225,0.00014342,110520.0,110510.0,0.43979187]
[1756452772818,0.00014342,110520.0,110510.0,0.44179187]
[1756452773183,0.00014342,110520.0,110510.0,0.44479187]
[1756452779753,0.00014342,110520.0,110510.0,0.28011187]
[1756452779960,0.00014342,110520.0,110510.0,0.44479187]
[1756452780172,0.00037342,110520.0,110510.0,0.28011187]
[1756452780385,0.00037342,110520.0,110510.0,0.43962187]
[1756452780599,0.00037342,110520.0,110510.0,0.27494187]
[1756452780817,0.00037342,110520.0,110510.0,0.00566646]
[1756452780818,0.18147614,110520.0,110510.0,0.00566646]
[1756452781016,0.21771913,110520.0,110510.0,0.00566646]
[1756452781366,0.03675641,110520.0,110510.0,0.18664555]
[1756452781570,0.18430368,110520.0,110510.0,0.18664555]
[1756452781767,0.18147614,110520.0,110510.0,0.00566646]
[1756452781974,0.18147614,110520.0,110510.0,0.00366646]
[1756452782403,0.18147614,110520.0,110510.0,0.00466646]
[1756452782591,0.18147614,110520.0,110510.0,0.18564555]
[1756452782792,0.00014342,110520.0,110510.0,0.19081555]
[1756452782996,0.00014342,110520.0,110510.0,0.44379187]
[1756452783192,0.00037342,110520.0,110510.0,0.27094187]
[1756452783554,0.18430368,110520.0,110510.0,0.00166646]
[1756452783755,0.18147614,110520.0,110510.0,0.00266646]
[1756452783960,0.26818666,110520.0,110510.0,0.00266646]
[1756452784371,0.18147614,110520.0,110510.0,0.00266646]
[1756452785726,0.18133614,110520.0,110510.0,0.00166646]
[1756452786330,0.00037342,110520.0,110510.0,0.18164555]
[1756452786574,0.00014342,110520.0,110510.0,0.18681555]
[1756452786946,0.00297096,110520.0,110510.0,0.18681555]
[1756452787159,0.00014342,110520.0,110510.0,0.43979187]
[1756452788236,0.18133614,110520.0,110510.0,0.27511187]
[1756452788437,0.18133614,110520.0,110510.0,0.00066646]
[1756452788634,0.21756448,110520.0,110510.0,0.00066646]
[1756452788881,0.38238448,110520.0,110510.0,0.00066646]
[1756452789268,0.38224448,110520.0,110510.0,0.00066646]
[1756452789483,0.00037342,110520.0,110510.0,0.18164555]
[1756452789607,0.00320096,110520.0,110510.0,0.18364555]
[1756452789810,0.00297096,110520.0,110510.0,0.18881555]
[1756452790226,0.00297096,110520.0,110510.0,0.18781555]
[1756452790449,0.00297096,110520.0,110510.0,0.18681555]
[1756452790616,0.00023,110520.0,110510.0,0.18781555]
[1756452790831,0.00023,110520.0,110510.0,0.18364555]
[1756452791681,0.00023,110520.0,110510.0,0.18881555]
[1756452794598,0.00023,110520.0,110510.0,0.00783646]
[1756452794599,0.18119272,110520.0,110510.0,0.00783646]
[1756452794795,0.18119272,110520.0,110510.0,0.00266646]
[1756452796862,0.18119272,110520.0,110510.0,0.00568646]
[1756452798897,0.18119272,110520.0,110510.0,0.18666555]
[1756452799464,0.00023,110520.0,110510.0,0.18863555]
[1756452799663,0.18119272,110520.0,110510.0,0.18863555]
[1756452800759,0.1976402,110520.0,110510.0,0.00266646]
[1756452801713,0.18119272,110520.0,110510.0,0.00266646]
[1756452804504,0.18119272,110520.0,110510.0,0.00573646]
[1756452805284,0.18119272,110520.0,110510.0,0.00266646]
[1756452807177,0.34587272,110520.0,110510.0,0.00266646]
[1756452810144,0.77430904,110520.0,110510.0,0.00266646]
[1756452810346,0.89814884,110520.0,110510.0,0.00266646]
[1756452810549,0.92536584,110520.0,110510.0,0.00266646]
[1756452810786,0.88485881,110520.0,110510.0,0.00266646]
[1756452810990,0.18102824,110480.0,110470.0,0.07370082]
[1756452811191,0.34566824,110480.0,110470.0,0.07063082]
[1756452812026,0.18102824,110480.0,110470.0,0.07063082]
[1756452812230,0.34566824,110480.0,110470.0,0.0761491]
[1756452812940,0.34566824,110480.0,110470.0,0.0771491]
[1756452813171,0.34566824,110480.0,110470.0,0.0751791]
[1756452813342,0.34566824,110480.0,110470.0,0.00147828]
[1756452813958,0.34566824,110480.0,110470.0,0.00247828]
[1756452814951,0.18102824,110480.0,110470.0,0.00247828]
[1756452815151,0.34566824,110480.0,110470.0,0.00247828]
[1756452817011,0.18102824,110480.0,110470.0,0.00247828]
[1756452817435,0.34566824,110480.0,110470.0,0.1885629]
[1756452817642,0.16464,110480.0,110470.0,0.1885629]
[1756452817856,0.52101185,110490.0,110480.0,0.18102824]
[1756452818028,0.68565185,110490.0,110480.0,0.18606824]
[1756452818233,0.34,110490.0,110480.0,0.18606824]
[1756452818489,0.52101185,110490.0,110480.0,0.18606824]
[1756452818686,0.52101185,110490.0,110480.0,0.00504]
[1756452818891,0.18102824,110480.0,110470.0,0.00454828]
[1756452819192,0.18102824,110480.0,110470.0,0.0928446]
[1756452819361,0.18102824,110480.0,110470.0,0.0948146]
[1756452819560,0.18102824,110480.0,110470.0,0.27585922]
[1756452819769,0.68565185,110490.0,110480.0,0.18102824]
[1756452819954,0.34,110490.0,110480.0,0.18606824]
[1756452820306,0.50464,110490.0,110480.0,0.18606824]
[1756452820510,0.68565185,110490.0,110480.0,0.18606824]
[1756452821506,0.68565185,110490.0,110480.0,0.00504]
[1756452821874,0.68565185,110490.0,110480.0,0.00307]
[1756452822069,0.18102824,110480.0,110470.0,0.27288762]
[1756452822372,0.18102824,110480.0,110470.0,0.26981762]
[1756452822568,0.18102824,110480.0,110470.0,0.27178762]
[1756452822978,0.18102824,110480.0,110470.0,0.27485762]
[1756452823180,0.18102824,110480.0,110470.0,0.27585762]
[1756452823584,0.18102824,110480.0,110470.0,0.0948146]
[1756452825038,0.18102824,110480.0,110470.0,0.27685922]
[1756452826282,0.18102824,110480.0,110470.0,0.0958146]
[1756452827442,0.18102824,110480.0,110470.0,0.27685922]
[1756452827628,0.52101185,110490.0,110470.0,0.27685922]
[1756452827835,0.16464,110480.0,110470.0,0.27378922]
[1756452828036,0.68565185,110490.0,110480.0,0.18102824]
[1756452828234,0.68565185,110490.0,110480.0,0.18299824]
[1756452828474,0.68565185,110490.0,110480.0,0.00514]
[1756452830247,0.18102824,110480.0,110470.0,0.26981772]
[1756452830451,0.18102824,110480.0,110470.0,0.27298772]
[1756452830656,0.18102824,110480.0,110470.0,0.00560828]
[1756452832127,0.18102824,110480.0,110470.0,0.00660828]
[1756452832292,0.18102824,110480.0,110470.0,0.00760828]
[1756452832689,0.18102824,110480.0,110470.0,0.00247828]
[1756452833205,0.18102824,110480.0,110470.0,0.00760828]
[1756452833402,0.18102824,110480.0,110470.0,0.1886529]
[1756452835147,0.34562824,110480.0,110470.0,0.1886529]
[1756452839247,0.34562824,110480.0,110470.0,0.00760828]
[1756452841298,0.34562824,110480.0,110470.0,0.1886529]
[1756452841700,0.52101185,110490.0,110470.0,0.1886529]
[1756452841911,0.16456,110480.0,110470.0,0.1886529]
[1756452842108,0.34558824,110480.0,110470.0,0.1886529]
[1756452842558,0.34558824,110480.0,110470.0,0.00760828]
[1756452842704,0.34558824,110480.0,110470.0,0.00660828]
[1756452842906,0.34558824,110480.0,110470.0,0.1876529]
[1756452843354,0.34558824,110480.0,110470.0,0.1866529]
[1756452844100,0.34558824,110480.0,110470.0,0.1876529]
[1756452845429,0.34558824,110480.0,110470.0,0.00760828]
[1756452845848,0.34558824,110480.0,110470.0,0.00564828]
[1756452846052,0.34558824,110480.0,110470.0,0.00760828]
[1756452846544,0.34554824,110480.0,110470.0,0.00760828]
[1756452848009,0.34554824,110480.0,110470.0,0.00247828]
[1756452848665,0.34554824,110480.0,110470.0,0.00564828]
[1756452849009,0.34554824,110480.0,110470.0,0.00760828]
[1756452849194,0.34554824,110480.0,110470.0,0.00564828]
[1756452849420,0.34554824,110480.0,110470.0,0.00760828]
[1756452850323,0.34554824,110480.0,110470.0,0.00564828]
[1756452850500,0.34554824,110480.0,110470.0,0.00247828]
[1756452850925,0.34554824,110480.0,110470.0,0.00564828]
[1756452851997,0.34554824,110480.0,110470.0,0.00760828]
[1756452852610,0.34554824,110480.0,110470.0,0.00247828]
[1756452852817,0.34554824,110480.0,110470.0,0.00564828]
[1756452853016,0.34554824,110480.0,110470.0,0.00247828]
[1756452854224,0.86050057,110480.0,110470.0,0.00247828]
[1756452854434,0.87720911,110480.0,110470.0,0.00247828]
[1756452854838,0.88347495,110480.0,110470.0,0.00247828]
[1756452855388,0.88347495,110480.0,110470.0,0.00047828]
[1756452855591,0.88547495,110480.0,110470.0,0.00047828]
[1756452856131,0.88447495,110480.0,110470.0,0.00047828]
[1756452856328,0.90541377,110480.0,110470.0,0.00047828]
[1756452856634,0.90641377,110480.0,110470.0,0.00047828]
[1756452858895,0.90639277,110480.0,110470.0,0.00047828]
[1756452859073,0.74187277,110480.0,110470.0,0.00047828]
[1756452859447,0.90631277,110480.0,110470.0,0.00047828]
[1756452861523,0.18107741,110450.0,110440.0,0.00307]
[1756452861732,0.1810938,110440.0,110430.0,0.07370082]
[1756452861940,0.1810938,110440.0,110430.0,0.07063082]
[1756452863002,0.1810938,110440.0,110430.0,0.07077424]
[1756452863254,0.1810938,110440.0,110430.0,0.07177424]
[1756452864236,0.60939012,110440.0,110430.0,0.00114342]
[1756452864406,0.71862526,110440.0,110430.0,0.00114342]
[1756452864626,0.71862526,110440.0,110430.0,0.00014342]
[1756452865548,0.71862526,110440.0,110430.0,0.00114342]
[1756452865915,0.71862526,110440.0,110430.0,0.00014342]
[1756452868430,0.72062526,110440.0,110430.0,0.00014342]
[1756452868622,0.71862526,110440.0,110430.0,0.00014342]
[1756452868822,0.71962526,110440.0,110430.0,0.00014342]
[1756452869024,0.72062526,110440.0,110430.0,0.00014342]
[1756452869206,0.71962526,110440.0,110430.0,0.00014342]
[1756452875114,0.74686026,110440.0,110430.0,0.00014342]
[1756452876708,0.74686026,110440.0,110430.0,1e-08]
[1756452878673,0.75308269,110440.0,110430.0,1e-08]
[1756452878880,0.91014026,110440.0,110430.0,0.00307001]
[1756452879108,0.91014026,110440.0,110430.0,0.00523001]
[1756452879260,0.91314026,110440.0,110430.0,0.00523001]
[1756452879618,0.91514026,110440.0,110430.0,0.00307001]
[1756452881099,0.91514026,110440.0,110430.0,1e-08]
[1756452881559,0.92136706,110440.0,110430.0,1e-08]
[1756452881768,1.36416706,110440.0,110430.0,1e-08]
[1756452881962,1.36412706,110440.0,110430.0,1e-08]
[1756452882525,1.19988706,110440.0,110430.0,1e-08]
[1756452882729,1.36412706,110440.0,110430.0,1e-08]
[1756452882936,0.92132706,110440.0,110430.0,0.00523001]
[1756452884750,0.73614824,110440.0,110430.0,0.00523001]
[1756452885037,0.90038824,110440.0,110430.0,0.00523001]
[1756452885222,0.90039551,110440.0,110430.0,0.00523001]
[1756452885892,0.90039551,110440.0,110430.0,0.00307001]
[1756452886099,0.92133433,110440.0,110430.0,1e-08]
[1756452886478,0.73615551,110440.0,110430.0,0.00523001]
[1756452886682,0.92129433,110440.0,110430.0,0.00523001]
[1756452887050,0.73615551,110440.0,110430.0,0.00523001]
[1756452887373,0.46582512,110440.0,110430.0,0.00523001]
[1756452887998,0.80582512,110440.0,110430.0,0.00523001]
[1756452888412,0.80382512,110440.0,110430.0,0.00523001]
[1756452888626,0.80082512,110440.0,110430.0,0.00523001]
[1756452891315,0.64288193,110440.0,110430.0,0.00523001]
[1756452891521,0.80078512,110440.0,110430.0,0.00523001]
[1756452893754,0.88908144,110440.0,110430.0,0.00523001]
[1756452893946,0.89533798,110440.0,110430.0,0.00523001]
[1756452894279,0.89533798,110440.0,110430.0,1e-08]
[1756452895030,0.9162768,110440.0,110430.0,1e-08]
[1756452895744,0.91627649,110440.0,110430.0,1e-08]
[1756452896967,0.7317084,110440.0,110430.0,1e-08]
[1756452897127,0.9128022,110440.0,110430.0,1e-08]
[1756452898963,0.9148022,110440.0,110430.0,1e-08]
[1756452899161,0.91480197,110440.0,110430.0,1e-08]
[1756452899431,0.91580197,110440.0,110430.0,1e-08]
[1756452900194,0.75164197,110440.0,110430.0,0.00216001]
[1756452900562,0.7215848,110440.0,110430.0,0.00534001]
[1756452900747,0.6880938,110440.0,110430.0,0.00534001]
[1756452901061,0.5240938,110440.0,110430.0,0.00534001]
[1756452901292,0.6880938,110440.0,110430.0,0.00534001]
[1756452901521,0.6880938,110440.0,110430.0,0.18645021]
[1756452901788,0.6880938,110440.0,110430.0,0.00534001]
[1756452904198,0.6880938,110440.0,110430.0,0.00467229]
[1756452904636,0.6880538,110440.0,110430.0,0.00467229]
[1756452908077,0.18114301,110410.0,110390.0,0.07083082]
[1756452908305,0.34503942,110400.0,110390.0,0.00034343]
[1756452908793,0.34503942,110400.0,110390.0,0.00568343]
[1756452909437,0.77426574,110400.0,110390.0,0.00134343]
[1756452909648,0.7805144,110400.0,110390.0,0.00134343]
[1756452909867,0.86881072,110400.0,110390.0,0.00434343]
[1756452910065,0.86881072,110400.0,110390.0,0.00334343]
[1756452910213,0.86256206,110400.0,110390.0,0.00334343]
[1756452911036,0.86256206,110400.0,110390.0,0.00034343]
[1756452911555,0.86256206,110400.0,110390.0,0.00234343]
[1756452911931,0.86256206,110400.0,110390.0,0.00334343]
[1756452912764,0.89031855,110400.0,110390.0,0.00334343]
[1756452913272,0.88408088,110400.0,110390.0,0.00334343]
[1756452913505,0.88350088,110400.0,110390.0,0.00334343]
[1756452913924,0.88346088,110400.0,110390.0,0.00334343]
[1756452914850,0.60945574,110400.0,110390.0,0.00868343]
[1756452915062,0.77329574,110400.0,110390.0,0.00868343]
[1756452915530,0.77422574,110400.0,110390.0,0.00334343]
[1756452915744,0.79516456,110400.0,110390.0,0.00334343]
[1756452916841,0.79516456,110400.0,110390.0,0.00034343]
[1756452917039,0.88446088,110400.0,110390.0,0.00034343]
[1756452917786,0.91170688,110400.0,110390.0,0.00034343]
[1756452918196,0.74886688,110400.0,110390.0,0.00034343]
[1756452918402,0.91266688,110400.0,110390.0,0.00034343]
[1756452918640,0.82437056,110400.0,110390.0,0.00034343]
[1756452918862,0.82437056,110400.0,110390.0,0.00359343]
[1756452922122,0.82437056,110400.0,110390.0,0.00034343]
[1756452925988,0.55040542,110400.0,110390.0,0.00563343]
[1756452926225,0.68687942,110400.0,110390.0,0.00563343]
[1756452926868,0.68587942,110400.0,110390.0,0.00563343]
[1756452928399,0.68487942,110400.0,110390.0,0.00563343]
[1756452929106,0.68487942,110400.0,110390.0,0.00663343]
[1756452932382,0.77410574,110400.0,110390.0,0.00459343]
[1756452932620,0.83039085,110400.0,110390.0,0.00134343]
[1756452933372,0.66667085,110400.0,110390.0,0.00134343]
[1756452933577,0.77309574,110400.0,110390.0,0.00663343]
[1756452933777,0.77309574,110400.0,110390.0,0.00563343]
[1756452934211,0.77409574,110400.0,110390.0,0.00563343]
[1756452934625,0.77502574,110400.0,110390.0,0.00563343]
[1756452934998,0.77602574,110400.0,110390.0,0.00563343]
[1756452935997,0.77509574,110400.0,110390.0,0.00563343]
[1756452936637,0.52315942,110400.0,110390.0,0.00563343]
[1756452936926,0.68675942,110400.0,110390.0,0.00563343]
[1756452940716,0.88522088,110400.0,110390.0,0.00034343]
[1756452940929,0.91864359,110400.0,110390.0,0.00034343]
[1756452941135,0.80940845,110400.0,110390.0,0.00238343]
[1756452941368,0.69293713,110400.0,110390.0,0.00563343]
[1756452941539,0.68667942,110400.0,110390.0,0.00563343]
[1756452941796,0.52315942,110400.0,110390.0,0.00563343]
[1756452942014,0.002,110400.0,110390.0,0.18680926]
[1756452942216,0.002,110400.0,110390.0,0.27510558]
[1756452942623,0.002,110400.0,110390.0,0.3457364]
[1756452942797,0.16348,110430.0,110420.0,0.1811266]
[1756452942998,0.3445738,110440.0,110420.0,0.1864166]
[1756452943206,0.6845738,110440.0,110430.0,0.00325]
[1756452943363,0.6845738,110440.0,110430.0,0.00529]
[1756452943766,0.6865538,110440.0,110430.0,0.00204]
[1756452943966,0.1811102,110430.0,110420.0,0.00325]
[1756452944200,0.1810938,110440.0,110430.0,0.00204]
[1756452944382,0.6845738,110440.0,110430.0,0.00529]
[1756452944766,0.3445738,110440.0,110430.0,0.00529]
[1756452944918,0.5211102,110430.0,110420.0,0.002]
[1756452945091,0.5211102,110430.0,110420.0,0.00625]
[1756452945290,0.50344,110430.0,110420.0,0.1894166]
[1756452945646,0.6845502,110430.0,110420.0,0.00529]
[1756452945887,0.18113889,110420.0,110400.0,0.19346466]
[1756452946066,0.78215011,110430.0,110420.0,0.1864166]
[1756452946067,0.53016571,110430.0,110420.0,0.1864166]
[1756452946275,0.69360571,110430.0,110420.0,0.1864166]
[1756452946497,0.6845502,110430.0,110420.0,0.1864166]
[1756452946661,0.6845502,110430.0,110420.0,0.1894166]
[1756452947068,0.6845502,110430.0,110420.0,0.1864166]
[1756452947513,0.6845502,110430.0,110420.0,0.1874166]
[1756452947806,0.6845502,110430.0,110420.0,0.00629]
[1756452948105,0.6845502,110430.0,110420.0,0.001]
[1756452948106,0.6865302,110430.0,110420.0,0.001]
[1756452948473,0.6865302,110430.0,110420.0,0.00299]
[1756452948875,0.6865302,110430.0,110420.0,0.00614]
[1756452949278,0.6865302,110430.0,110420.0,0.00299]
[1756452949485,0.6865302,110430.0,110420.0,0.001]
[1756452950124,0.6865302,110430.0,110420.0,0.00299]
[1756452950743,0.6865302,110430.0,110420.0,0.001]
[1756452951555,0.6865302,110430.0,110420.0,0.00108983]
[1756452951962,0.6865302,110430.0,110420.0,0.00622983]
[1756452952101,0.6865302,110430.0,110420.0,0.00108983]
[1756452952514,0.7735496,110430.0,110420.0,0.00108983]
[1756452952868,0.86441592,110430.0,110420.0,0.00108983]
[1756452953072,0.88535474,110430.0,110420.0,0.00108983]
[1756452953200,0.88535474,110430.0,110420.0,8.983e-05]
[1756452953409,0.89159341,110430.0,110420.0,8.983e-05]
[1756452953607,0.91983241,110430.0,110420.0,1e-08]
[1756452954236,5.91983241,110430.0,110420.0,1e-08]
[1756452955258,6.01983241,110430.0,110420.0,1e-08]
[1756452955474,6.03799827,110430.0,110420.0,1e-08]
[1756452955878,6.03899827,110430.0,110420.0,1e-08]
[1756452956693,6.03799827,110430.0,110420.0,1e-08]
[1756452957036,6.0571813,110430.0,110420.0,1e-08]
[1756452957173,5.8937413,110430.0,110420.0,1e-08]
[1756452957377,6.05206093,110430.0,110420.0,1e-08]
[1756452958029,6.06869718,110430.0,110420.0,1e-08]
[1756452958771,6.07069718,110430.0,110420.0,1e-08]
[1756452959423,5.85737718,110430.0,110420.0,1e-08]
[1756452959598,5.84855622,110430.0,110420.0,1e-08]
[1756452959798,5.83239036,110430.0,110420.0,1e-08]
[1756452960267,5.85332918,110430.0,110420.0,1e-08]
[1756452960782,5.97248993,110430.0,110420.0,1e-08]
[1756452961211,5.63248993,110430.0,110420.0,1e-08]
[1756452961384,5.72078625,110430.0,110420.0,1e-08]
[1756452961971,5.55746625,110430.0,110420.0,1e-08]
[1756452962153,5.72074625,110430.0,110420.0,1e-08]
[1756452962361,5.55746625,110430.0,110420.0,1e-08]
[1756452962566,5.67074625,110430.0,110420.0,1e-08]
[1756452962767,5.58244993,110430.0,110420.0,1e-08]
[1756452963175,5.92244993,110430.0,110420.0,1e-08]
[1756452963376,5.97244773,110430.0,110420.0,1e-08]
[1756452965030,5.80916773,110430.0,110420.0,1e-08]
[1756452965256,5.84893891,110430.0,110420.0,1e-08]
[1756452965403,5.91807448,110430.0,110420.0,1e-08]
[1756452965603,6.02064448,110430.0,110420.0,1e-08]
[1756452965803,6.06073838,110430.0,110420.0,1e-08]
[1756452966107,6.03786574,110430.0,110420.0,1e-08]
[1756452966313,6.06073097,110430.0,110420.0,1e-08]
[1756452966708,6.08162738,110430.0,110420.0,1e-08]
[1756452966914,6.06073041,110430.0,110420.0,1e-08]
[1756452967983,0.18114301,110410.0,110400.0,1e-08]
[1756452968156,0.60244624,110410.0,110400.0,1e-08]
[1756452968408,0.60459624,110410.0,110400.0,1e-08]
[1756452969287,0.94459624,110410.0,110400.0,1e-08]
[1756452969743,0.94559624,110410.0,110400.0,1e-08]
[1756452970493,0.89552,110410.0,110400.0,1e-08]
[1756452971349,0.85213187,110410.0,110400.0,1e-08]
[1756452972097,0.85213187,110410.0,110400.0,0.00514001]
[1756452972304,0.84998187,110410.0,110400.0,0.00514001]
[1756452973085,1.29278187,110410.0,110400.0,0.00514001]
[1756452973289,1.38305819,110410.0,110400.0,0.00514001]
[1756452973441,1.38305819,110410.0,110400.0,0.00199001]
[1756452973650,1.38305819,110410.0,110400.0,1e-08]
[1756452974675,1.38301819,110410.0,110400.0,1e-08]
[1756452974878,1.38301819,110410.0,110400.0,0.00514001]
[1756452975452,0.20209824,110400.0,110390.0,0.0002]
[1756452975649,0.54189088,110400.0,110390.0,0.0002]
[1756452975840,0.54189088,110400.0,110390.0,0.00219]
[1756452976284,0.56913688,110400.0,110390.0,0.00219]
[1756452976495,0.57128688,110400.0,110390.0,0.00219]
[1756452977019,0.57128688,110400.0,110390.0,0.00519]
[1756452977659,0.587917,110400.0,110390.0,0.00519]
[1756452978275,0.58577158,110400.0,110390.0,0.00519]
[1756452979066,0.58577158,110400.0,110390.0,0.00824]
[1756452979411,0.47649644,110400.0,110390.0,0.00824]
[1756452979975,0.45986174,110400.0,110390.0,0.00824]
[1756452980336,0.47651234,110400.0,110390.0,0.00824]
[1756452981193,0.48275989,110400.0,110390.0,0.00824]
[1756452982332,0.48271989,110400.0,110390.0,0.00824]
[1756452983317,0.57074079,110400.0,110390.0,0.00824]
[1756452983527,0.57289079,110400.0,110390.0,0.00519]
[1756452983723,0.59382961,110400.0,110390.0,0.00519]
[1756452983974,0.59681961,110400.0,110390.0,0.00519]
[1756452984211,0.59681961,110400.0,110390.0,0.0032]
[1756452985654,0.93681961,110400.0,110390.0,0.0032]
[1756452985859,0.93681961,110400.0,110390.0,1e-08]
[1756452986070,0.95605088,110400.0,110390.0,1e-08]
[1756452986699,0.94980333,110400.0,110390.0,1e-08]
[1756452986902,0.95606294,110400.0,110390.0,1e-08]
[1756452987830,0.93937301,110400.0,110390.0,1e-08]
[1756452988257,5.98937301,110400.0,110390.0,1e-08]
[1756452988458,6.01331422,110400.0,110390.0,1e-08]
[1756452989070,6.06331422,110400.0,110390.0,1e-08]
[1756452989908,6.01331422,110400.0,110390.0,1e-08]
[1756452990123,0.52119224,110380.0,110370.0,0.001]
[1756452990345,0.85115938,110380.0,110370.0,0.001]
[1756452990566,0.85115938,110380.0,110370.0,0.00307]
[1756452990982,0.87841038,110380.0,110370.0,0.00307]
[1756452992964,0.85115938,110380.0,110370.0,0.00307]
[1756452993154,0.68807938,110380.0,110370.0,0.00307]
[1756452993361,0.85111938,110380.0,110370.0,0.00307]
[1756452993567,0.76282306,110380.0,110370.0,0.00612]
[1756452993775,0.76280982,110380.0,110370.0,0.00612]
[1756452994604,0.59976982,110380.0,110370.0,0.00612]
[1756452994810,0.76280982,110380.0,110370.0,0.00612]
[1756452997248,0.75656434,110380.0,110370.0,0.00612]
[1756452997466,0.76280911,110380.0,110370.0,0.00612]
[1756452997876,0.59976911,110380.0,110370.0,0.00612]
[1756452998261,0.76272911,110380.0,110370.0,0.00612]
[1756452999014,0.76276911,110380.0,110370.0,0.00612]
[1756452999653,0.76272911,110380.0,110370.0,0.00612]
[1756452999867,0.85317543,110380.0,110370.0,0.00307]
[1756453000069,0.87710425,110380.0,110370.0,0.001]
[1756453000861,0.8771039,110380.0,110370.0,0.00307]
[1756453002624,0.7141439,110380.0,110370.0,0.001]
[1756453002827,0.8770639,110380.0,110370.0,0.001]
[1756453003036,0.87547053,110380.0,110370.0,0.001]
[1756453005610,0.71255053,110380.0,110370.0,0.001]
[1756453005834,0.87543053,110380.0,110370.0,0.001]
[1756453006256,0.52584329,110380.0,110370.0,0.00612]
[1756453006507,0.68872329,110380.0,110370.0,0.00612]